bitfinex/quotes_SOLUSD_20260118
["timestamp","ask_amount","ask_price","bid_price","bid_amount"]
[1768719956513,0.8305296,142.63,142.61,7.01207642]
[1768719962141,0.8305296,142.62,142.59,16.19562639]
[1768719962634,0.8305296,142.62,142.58,7.84595171]
[1768719962814,0.8305296,142.6,142.58,7.01342748]
[1768719963429,0.8305296,142.6,142.58,7.84905387]
[1768719964334,2.11564742,142.62,142.58,7.84905387]
[1768719966123,9.12741735,142.62,142.57,7.84972472]
[1768719966329,0.8305296,142.61,142.57,7.84972472]
[1768719966719,0.8305296,142.61,142.58,0.83562639]
[1768719967526,0.8305296,142.62,142.59,0.83562639]
[1768719968325,0.8305296,142.62,142.59,7.84859947]
[1768719972953,2.94617702,142.62,142.59,7.84859947]
[1768719974927,0.8305296,142.62,142.59,7.84859947]
[1768719975148,2.94617702,142.62,142.59,7.84859947]
[1768719977161,9.95749844,142.63,142.6,0.83562639]
[1768719977865,9.12650824,142.64,142.6,0.83562639]
[1768719978036,9.95703784,142.64,142.6,0.83562639]
[1768719978430,0.8305296,142.63,142.6,0.83562639]
[1768719985868,7.84180338,142.63,142.6,0.83562639]
[1768719986861,9.9574508,142.63,142.6,0.83562639]
[1768719988177,7.84180338,142.63,142.6,0.83562639]
[1768719989772,0.83902238,142.61,142.58,7.01338885]
[1768719989976,2.9546698,142.61,142.58,7.82159637]
[1768719990275,0.83902238,142.6,142.58,7.01338885]
[1768719990674,0.83902238,142.6,142.58,7.82159637]
[1768719990853,2.9546698,142.61,142.58,7.82159637]
[1768719991555,9.96710625,142.61,142.58,0.80820752]
[1768719991759,9.96710625,142.61,142.57,7.82226308]
[1768719991760,0.83902238,142.6,142.57,7.82226308]
[1768719998783,7.85182374,142.6,142.57,0.80820752]
[1768720001483,0.80322174,142.59,142.57,0.80820752]
[1768720001680,0.6832217,142.59,142.57,0.80820752]
[1768720006688,0.6832217,142.59,142.56,7.01453356]
[1768720007579,0.80322174,142.58,142.55,7.81412963]
[1768720007774,0.80322174,142.58,142.55,0.79914515]
[1768720008991,9.93261325,142.58,142.55,0.79914515]
[1768720010204,7.81696583,142.58,142.55,0.79914515]
[1768720015504,7.81696583,142.58,142.54,22.37547594]
[1768720015505,0.85741728,142.57,142.54,23.17200549]
[1768720015682,0.79741725,142.57,142.54,23.17200549]
[1768720015882,0.79741725,142.57,142.54,7.81200549]
[1768720016092,0.79741725,142.57,142.55,0.79652955]
[1768720016893,9.12939151,142.58,142.55,0.79652955]
[1768720017602,9.98680879,142.58,142.55,0.79652955]
[1768720017781,7.87116137,142.58,142.55,0.79652955]
[1768720020816,0.85741728,142.55,142.52,7.01627852]
[1768720020987,0.79741725,142.55,142.52,7.81280807]
[1768720021793,0.79741725,142.55,142.53,0.79652955]
[1768720025204,9.13002447,142.57,142.53,0.79652955]
[1768720025409,0.85741728,142.56,142.52,7.81280807]
[1768720026805,0.85741728,142.56,142.53,0.79652955]
[1768720027609,2.9744993,142.54,142.51,0.79652955]
[1768720029310,9.99025691,142.54,142.51,0.79652955]
[1768720031011,7.87317489,142.54,142.51,0.79652955]
[1768720031215,9.99025691,142.54,142.51,0.79652955]
[1768720032416,7.87317489,142.54,142.51,0.79652955]
[1768720033012,7.81317489,142.54,142.51,0.79652955]
[1768720039215,7.75317488,142.54,142.51,0.79652955]
[1768720043522,9.8702569,142.54,142.51,0.79652955]
[1768720044326,7.75317488,142.54,142.51,0.79652955]
[1768720044635,9.89124383,142.55,142.52,0.77102684]
[1768720044803,7.77416181,142.55,142.52,0.77102684]
[1768720049495,9.89124383,142.55,142.52,0.77102684]
[1768720054028,7.77416181,142.55,142.52,0.77102684]
[1768720059334,25.32017585,142.56,142.52,0.77102684]
[1768720059632,27.43725787,142.56,142.52,0.77102684]
[1768720059832,0.76910965,142.55,142.52,0.77102684]
[1768720066218,18.46590889,142.57,142.55,0.82572824]
[1768720066545,14.80402669,142.57,142.55,0.82572824]
[1768720066713,7.78715167,142.57,142.55,0.82572824]
[1768720067644,7.01417524,142.57,142.55,0.82572824]
[1768720067829,7.01352454,142.59,142.56,0.82572824]
[1768720068015,7.01352454,142.59,142.57,0.82572824]
[1768720077353,9.90331181,142.6,142.57,0.82572824]
[1768720080949,7.01213098,142.61,142.58,0.85352116]
[1768720081155,7.01213098,142.61,142.59,0.85352116]
[1768720082254,7.79144845,142.61,142.58,0.85352116]
[1768720083547,7.79228916,142.6,142.57,0.85352116]
[1768720084656,0.77931747,142.59,142.56,0.85352116]
[1768720085556,7.7928866,142.59,142.56,0.85352116]
[1768720088456,0.77931747,142.57,142.54,0.85352116]
[1768720088763,0.71931746,142.57,142.54,0.85352116]
[1768720089546,7.73354561,142.57,142.54,0.85352116]
[1768720090543,0.72449256,142.56,142.53,0.85352116]
[1768720090940,7.01422815,142.57,142.54,0.85352116]
[1768720091858,7.01422815,142.57,142.55,0.85352116]
[1768720092557,7.73829736,142.58,142.55,0.85352116]
[1768720098151,2.116092,142.56,142.51,0.85352116]
[1768720098460,0.7281213,142.56,142.52,0.85352116]
[1768720099538,7.74293902,142.56,142.53,0.85352116]
[1768720099964,9.85903102,142.56,142.53,0.85352116]
[1768720100647,2.116092,142.55,142.53,0.85352116]
[1768720101751,7.01481772,142.56,142.53,0.85352116]
[1768720101950,9.13090972,142.56,142.53,0.85352116]
[1768720102257,9.8613503,142.56,142.53,0.85352116]
[1768720108677,2.84914453,142.54,142.51,7.8319503]
[1768720108844,0.73305253,142.54,142.51,0.81489887]
[1768720109050,2.84914453,142.54,142.51,0.81489887]
[1768720111162,2.84914453,142.54,142.51,7.83183855]
[1768720111470,0.73305253,142.54,142.51,7.83183855]
[1768720112769,0.73305253,142.54,142.51,0.81489887]
[1768720112770,7.74863487,142.54,142.51,0.81489887]
[1768720112969,2.85078792,142.53,142.5,0.91489887]
[1768720113471,7.75067738,142.54,142.51,0.81489887]
[1768720114762,9.86676938,142.54,142.51,0.81489887]
[1768720118864,0.7373953,142.52,142.5,0.1]
[1768720119183,9.86962143,142.53,142.5,0.9629261]
[1768720121789,9.87034676,142.54,142.51,0.8629261]
[1768720122174,7.75425476,142.54,142.51,0.8629261]
[1768720123992,9.87034676,142.54,142.51,0.8629261]
[1768720135193,7.75425476,142.54,142.51,0.8629261]
[1768720135398,9.87034676,142.54,142.51,0.8629261]
[1768720139202,9.13185976,142.54,142.51,0.8629261]
[1768720139900,9.87590715,142.55,142.52,0.83890694]
[1768720140103,7.75981515,142.55,142.52,0.83890694]
[1768720140290,9.87590715,142.55,142.52,0.83890694]
[1768720140701,9.13131919,142.55,142.52,0.83890694]
[1768720140901,9.87619265,142.55,142.52,0.83890694]
[1768720142907,9.13131919,142.55,142.52,0.83890694]
[1768720143113,9.87702962,142.55,142.52,0.83890694]
[1768720145206,9.1318646,142.54,142.5,7.11740011]
[1768720145408,0.80701238,142.52,142.5,0.1]
[1768720145614,2.92310438,142.52,142.5,0.1]
[1768720146601,0.80701238,142.53,142.5,0.1]
[1768720147288,7.8234589,142.53,142.5,0.1]
[1768720147490,7.8234589,142.53,142.5,0.93890694]
[1768720154314,7.01644652,142.53,142.5,0.93890694]
[1768720154509,0.80701238,142.52,142.5,0.1]
[1768720155613,0.80701238,142.52,142.5,0.93890694]
[1768720156119,9.94146155,142.53,142.5,0.93890694]
[1768720160900,7.8234589,142.53,142.5,0.93890694]
[1768720161099,9.94146155,142.53,142.5,0.93890694]
[1768720163226,0.86177025,142.52,142.5,0.93890694]
[1768720163625,9.99621942,142.53,142.5,0.93890694]
[1768720165842,0.86177025,142.52,142.5,0.1]
[1768720166520,0.86177025,142.52,142.5,0.91012312]
[1768720167226,9.99621942,142.53,142.5,0.91012312]
[1768720171724,7.87821677,142.53,142.5,0.91012312]
[1768720171916,9.99621942,142.53,142.5,0.91012312]
[1768720175629,7.85782664,142.52,142.5,0.1]
[1768720175928,7.01669301,142.52,142.5,0.92293381]
[1768720180040,0.84113363,142.51,142.5,1e-08]
[1768720180219,2.95913628,142.51,142.49,0.1]
[1768720180535,0.84113363,142.51,142.49,0.1]
[1768720181133,2.95913628,142.51,142.49,0.1]
[1768720182308,9.97628323,142.51,142.49,0.1]
[1768720183833,7.85828058,142.51,142.49,0.1]
[1768720192736,0.84113363,142.51,142.49,0.1]
[1768720193858,0.84113363,142.51,142.49,0.96841674]
[1768720195233,10.01613356,142.53,142.5,0.86841674]
[1768720195441,0.88199518,142.52,142.49,7.11784652]
[1768720197450,0.88199518,142.52,142.49,7.98626326]
[1768720197744,66.3617665,142.54,142.49,7.98626326]
[1768720197745,76.37746633,142.54,142.51,0.86841674]
[1768720198532,0.88199518,142.53,142.51,0.86841674]
[1768720198729,0.88199518,142.53,142.5,7.88583878]
[1768720199644,2.99999783,142.53,142.5,7.88583878]
[1768720199844,10.01608201,142.53,142.5,7.88583878]
[1768720200250,2.99999783,142.52,142.49,7.98625125]
[1768720200762,2.99999783,142.52,142.49,0.96841674]
[1768720203657,10.01657543,142.52,142.49,0.96841674]
[1768720205651,7.89857278,142.52,142.49,0.96841674]
[1768720208061,0.69871458,142.49,142.46,1e-08]
[1768720208239,0.70084464,142.48,142.46,1e-08]
[1768720210055,2.82028496,142.48,142.46,1e-08]
[1768720212157,9.83887935,142.48,142.46,1e-08]
[1768720214460,7.71943903,142.48,142.46,1e-08]
[1768720214634,9.83887935,142.48,142.46,0.86841675]
[1768720215044,9.13803471,142.48,142.46,0.86841675]
[1768720216746,7.01859439,142.48,142.46,0.86841675]
[1768720216947,9.13803471,142.48,142.46,0.86841675]
[1768720218866,9.13846186,142.47,142.45,0.96841674]
[1768720219067,2.11944032,142.46,142.45,0.96841674]
[1768720220153,9.13846186,142.47,142.45,0.96841674]
[1768720224173,9.94348924,142.47,142.45,0.1]
[1768720224371,2.11944032,142.46,142.44,0.98318362]
[1768720224548,2.05944033,142.46,142.44,0.98318362]
[1768720225777,9.07900541,142.46,142.44,0.98318362]
[1768720227680,9.07900541,142.46,142.44,0.23218362]
[1768720231276,0.91664357,142.44,142.41,0.88318362]
[1768720231480,2.11944032,142.43,142.41,0.88318362]
[1768720231678,0.91664357,142.44,142.41,0.88318362]
[1768720231885,3.03608389,142.44,142.41,0.88318362]
[1768720232864,3.03608389,142.44,142.42,0.88318362]
[1768720233060,10.05613679,142.45,142.42,0.88318362]
[1768720236895,7.93521745,142.44,142.41,0.99082338]
[1768720237071,10.05465777,142.44,142.41,0.99082338]
[1768720237991,7.93379396,142.47,142.43,0.99082338]
[1768720238173,10.05323428,142.47,142.43,0.99082338]
[1768720239288,3.03403624,142.45,142.41,7.02184232]
[1768720239470,3.03403624,142.45,142.42,0.99082338]
[1768720240294,0.91459592,142.45,142.42,0.99082338]
[1768720240495,3.03403624,142.45,142.42,0.99082338]
[1768720240676,3.03403624,142.43,142.4,1.09082338]
[1768720247801,10.05491276,142.44,142.41,0.99082338]
[1768720252587,7.93547244,142.44,142.41,0.99082338]
[1768720252795,10.05491276,142.44,142.41,0.99082338]
[1768720253700,2.11944032,142.43,142.41,0.99082338]
[1768720253902,2.05944033,142.43,142.41,0.99082338]
[1768720254403,7.93547244,142.44,142.41,0.99082338]
[1768720254693,2.11944032,142.43,142.41,0.99082338]
[1768720256893,3.07683454,142.42,142.4,0.1]
[1768720260619,3.07683454,142.42,142.4,1.04028382]
[1768720262806,0.95739422,142.41,142.4,0.1]
[1768720262995,3.07683454,142.41,142.38,8.06367712]
[1768720264611,2.11944032,142.4,142.38,8.06367712]
[1768720265713,2.11944032,142.4,142.39,0.94028382]
[1768720268907,2.11944032,142.4,142.39,7.96324891]
[1768720269117,3.07683454,142.41,142.39,7.96324891]
[1768720269720,3.07683454,142.41,142.39,7.02296509]
[1768720271314,3.0789798,142.41,142.39,7.02296509]
[1768720271529,2.12158558,142.41,142.39,7.96324891]
[1768720273718,3.0789798,142.41,142.39,7.02296509]
[1768720274095,3.0789798,142.41,142.39,7.96324891]
[1768720274303,0.95739422,142.41,142.39,7.96324891]
[1768720276421,0.89739423,142.41,142.39,7.96324891]
[1768720276717,2.12158558,142.42,142.39,7.96324891]
[1768720278622,3.0789798,142.42,142.39,7.96324891]
[1768720279016,0.95739422,142.42,142.39,7.96324891]
[1768720279416,3.01897981,142.42,142.39,7.96324891]
[1768720283233,0.89739423,142.42,142.39,7.96324891]
[1768720283435,3.01897981,142.42,142.39,7.96324891]
[1768720284026,0.89739423,142.42,142.39,7.96324891]
[1768720284229,3.01897981,142.42,142.39,7.96324891]
[1768720286930,3.01897981,142.42,142.4,0.82122249]
[1768720287229,2.12158558,142.42,142.4,0.82122249]
[1768720290336,3.01704134,142.42,142.39,7.84418758]
[1768720297734,3.01704134,142.42,142.36,35.16211984]
[1768720297735,2.12158558,142.38,142.37,0.79207719]
[1768720297921,2.12158558,142.38,142.36,0.1]
[1768720299215,2.12158558,142.38,142.36,7.12430795]
[1768720299515,2.06158559,142.38,142.36,7.12430795]
[1768720300021,2.06158559,142.38,142.36,7.91638514]
[1768720300222,2.06158559,142.38,142.36,0.89207719]
[1768720300434,9.98516115,142.39,142.36,0.89207719]
[1768720300736,2.12158558,142.37,142.36,0.89207719]
[1768720301036,2.06158559,142.37,142.36,0.1]
[1768720303239,2.96214268,142.38,142.36,0.1]
[1768720303428,2.96214268,142.39,142.36,7.91647813]
[1768720303738,2.96214268,142.39,142.37,0.79207719]
[1768720304745,0.8405571,142.39,142.37,0.79207719]
[1768720305041,2.96214268,142.39,142.37,0.79207719]
[1768720306847,2.96214268,142.39,142.36,7.91647813]
[1768720311351,0.8405571,142.38,142.36,7.12440094]
[1768720312047,2.12158558,142.38,142.35,0.1]
[1768720312642,7.02267677,142.4,142.35,0.9030982]
[1768720312838,2.12158558,142.38,142.35,0.9030982]
[1768720313044,2.12158558,142.37,142.35,0.1]
[1768720313343,2.06158559,142.37,142.35,0.1]
[1768720313846,2.06158559,142.37,142.35,0.9030982]
[1768720314732,2.06158559,142.37,142.35,0.1]
[1768720315234,2.06158559,142.37,142.35,0.9030982]
[1768720318151,7.02350268,142.38,142.35,0.9030982]
[1768720318332,2.12158558,142.38,142.35,0.9030982]
[1768720318726,2.12158558,142.38,142.35,0.1]
[1768720318945,2.12158558,142.37,142.35,0.1]
[1768720319250,2.12158558,142.38,142.35,0.1]
[1768720319849,9.14512328,142.38,142.35,0.1]
[1768720322651,2.12158558,142.37,142.35,0.1]
[1768720323837,9.14557879,142.37,142.35,0.1]
[1768720324155,2.12158558,142.36,142.35,0.1]
[1768720324453,9.14557879,142.37,142.35,0.1]
[1768720325656,2.12158558,142.36,142.35,0.1]
[1768720325840,2.12158558,142.35,142.33,0.98514945]
[1768720326953,2.12158558,142.35,142.33,1.78824765]
[1768720327147,2.12158558,142.35,142.33,1e-08]
[1768720327345,9.96277089,142.34,142.32,17.85150755]
[1768720327546,9.9027709,142.34,142.32,17.85150755]
[1768720329835,9.08701765,142.34,142.31,0.1]
[1768720330047,26.01473919,142.33,142.25,0.8030982]
[1768720330238,2.12158558,142.29,142.25,0.8030982]
[1768720330759,5.34408856,142.32,142.25,0.8030982]
[1768720330760,4.93442619,142.28,142.25,0.8030982]
[1768720330937,2.12158558,142.27,142.25,0.8030982]
[1768720331265,2.12158558,142.26,142.2,30.99490193]
[1768720331465,9.9553346,142.27,142.2,30.99490193]
[1768720331844,3.61789872,142.29,142.22,2.12158558]
[1768720332160,2.92644587,142.29,142.22,2.12158558]
[1768720333167,9.95447418,142.29,142.23,7.03086549]
[1768720333367,9.95825281,142.29,142.24,0.8030982]
[1768720333846,2.92219376,142.3,142.24,2.12536421]
[1768720334054,2.92219376,142.3,142.25,0.8030982]
[1768720334948,2.92219376,142.3,142.25,7.83248923]
[1768720335140,2.12536421,142.29,142.26,0.8030982]
[1768720337166,2.12536421,142.28,142.26,0.8030982]
[1768720338060,2.12536421,142.28,142.24,15.38]
[1768720339154,2.12536421,142.28,142.25,7.02939103]
[1768720339852,2.89611227,142.29,142.25,7.02939103]
[1768720340045,2.89611227,142.29,142.26,0.8030982]
[1768720340249,2.12536421,142.29,142.26,0.8030982]
[1768720340446,2.94111746,142.31,142.28,0.8030982]
[1768720340646,9.96815069,142.31,142.28,0.8030982]
[1768720341466,2.12536421,142.3,142.28,0.8030982]
[1768720342372,2.12536421,142.3,142.28,16.1830982]
[1768720344769,7.02741489,142.3,142.28,16.1830982]
[1768720349670,9.1527791,142.3,142.28,16.1830982]
[1768720349867,7.02741489,142.3,142.28,16.1830982]
[1768720350046,9.95641966,142.3,142.28,15.38]
[1768720350246,0.80364056,142.28,142.24,16.21772123]
[1768720350447,0.80364056,142.27,142.23,0.83772123]
[1768720350666,32.92419061,142.3,142.21,0.83772123]
[1768720350667,2.12536421,142.24,142.21,0.83772123]
[1768720350862,2.12536421,142.23,142.21,0.83772123]
[1768720351159,2.12536421,142.24,142.21,0.83772123]
[1768720352155,2.12536421,142.24,142.21,7.86956878]
[1768720352363,0.80364056,142.25,142.22,0.83772123]
[1768720352556,2.92900477,142.25,142.22,0.83772123]
[1768720353487,2.12536421,142.24,142.22,0.83772123]
[1768720354175,0.80364056,142.24,142.21,7.86956878]
[1768720354671,2.12536421,142.23,142.21,7.86956878]
[1768720355049,0.80364056,142.24,142.21,7.86956878]
[1768720355355,2.12536421,142.24,142.21,7.86956878]
[1768720355559,2.12536421,142.24,142.22,0.77239322]
[1768720355754,2.12536421,142.24,142.21,7.80424077]
[1768720355963,2.12536421,142.23,142.21,7.80424077]
[1768720359674,69.72906851,142.27,142.21,7.80424077]
[1768720359675,0.77114974,142.26,142.21,7.80424077]
[1768720359978,69.72906851,142.27,142.21,7.80424077]
[1768720359979,2.89651395,142.24,142.21,7.80424077]
[1768720360373,2.89651395,142.25,142.22,0.77239322]
[1768720360876,2.12536421,142.28,142.24,0.77239322]
[1768720361183,0.77114974,142.29,142.24,0.77239322]
[1768720361477,0.77114974,142.31,142.24,0.77239322]
[1768720361656,2.89651395,142.31,142.26,0.77239322]
[1768720361854,2.89651395,142.31,142.28,0.77239322]
[1768720362163,2.12536421,142.31,142.28,0.74239322]
[1768720362557,2.89651395,142.31,142.28,7.77057459]
[1768720365256,0.77114974,142.31,142.28,7.77057459]
[1768720365456,2.89651395,142.31,142.28,7.77057459]
[1768720365666,0.77114974,142.3,142.27,22.42887419]
[1768720365862,0.77114974,142.3,142.27,23.20126741]
[1768720366058,2.12536421,142.32,142.28,0.77239322]
[1768720366263,2.89651395,142.32,142.28,0.77239322]
[1768720366572,0.77114974,142.31,142.28,0.77239322]
[1768720367661,0.77114974,142.33,142.29,7.02790076]
[1768720367854,0.77114974,142.33,142.29,9.92565819]
[1768720368058,0.77114974,142.33,142.29,7.80029398]
[1768720368374,0.77114974,142.33,142.29,9.92565819]
[1768720371071,0.77114974,142.33,142.3,2.12536421]
[1768720372765,7.02560608,142.34,142.31,0.6951013]
[1768720373069,7.02560608,142.34,142.3,9.15275281]
[1768720373070,0.73757062,142.34,142.3,2.12536421]
[1768720374179,0.73757062,142.33,142.3,2.12536421]
[1768720374883,0.73757062,142.33,142.3,2.82046551]
[1768720376384,0.73757062,142.33,142.3,0.6951013]
[1768720376686,0.73757062,142.33,142.3,2.82046551]
[1768720379894,0.73757062,142.33,142.3,18.20046551]
[1768720380268,0.73757062,142.33,142.3,23.10250369]
[1768720380592,0.73757062,142.33,142.3,25.2278679]
[1768720381500,0.73757062,142.33,142.3,23.10250369]
[1768720381872,0.73757062,142.33,142.3,25.2278679]
[1768720382590,0.73757062,142.33,142.31,2.12536421]
[1768720383662,0.73757062,142.33,142.31,2.09536421]
[1768720383863,0.73757062,142.33,142.31,2.12536421]
[1768720385605,7.76301675,142.34,142.31,2.82046551]
[1768720386176,0.73757062,142.33,142.31,2.82046551]
[1768720387107,0.73757062,142.33,142.31,2.12536421]
[1768720390014,0.73757062,142.33,142.3,25.2278679]
[1768720393398,0.73757062,142.33,142.3,23.10250369]
[1768720397517,0.73757062,142.33,142.3,16.0751013]
[1768720401714,7.02544613,142.34,142.31,0.6951013]
[1768720401924,7.02544613,142.34,142.31,0.6651013]
[1768720402212,7.76301675,142.34,142.31,2.78871113]
[1768720403698,0.66453969,142.33,142.31,2.78871113]
[1768720404417,0.66453969,142.33,142.31,0.6651013]
[1768720405010,0.66453969,142.34,142.31,0.6651013]
[1768720405522,7.02550015,142.34,142.31,0.6651013]
[1768720405724,0.66453969,142.33,142.31,0.6651013]
[1768720405912,0.66453969,142.33,142.3,25.22362291]
[1768720406412,0.66453969,142.33,142.3,23.10001308]
[1768720406715,0.66453969,142.33,142.3,16.07262897]
[1768720408128,0.66453969,142.34,142.31,0.69262897]
[1768720408303,0.66453969,142.34,142.31,0.66262897]
[1768720408820,0.66453969,142.34,142.3,15.38]
[1768720410007,0.66453969,142.34,142.3,17.50360983]
[1768720410214,0.66453969,142.34,142.3,18.1962388]
[1768720411221,7.02493853,142.35,142.31,0.69262897]
[1768720411415,7.02493853,142.35,142.32,0.69262897]
[1768720411631,7.68947822,142.35,142.32,0.69262897]
[1768720412624,7.69000833,142.34,142.32,0.69262897]
[1768720412834,7.69000833,142.34,142.31,2.8162388]
[1768720413131,7.69000833,142.34,142.31,2.7862388]
[1768720414636,7.69000833,142.34,142.32,0.69262897]
[1768720415736,7.69110163,142.35,142.32,0.69262897]
[1768720419436,7.69110163,142.35,142.32,0.66262897]
[1768720420029,7.02493853,142.35,142.32,0.66262897]
[1768720420231,0.6661631,142.34,142.32,0.66262897]
[1768720420432,0.6661631,142.34,142.31,2.09360983]
[1768720421134,0.6661631,142.34,142.3,15.38]
[1768720421347,7.02493853,142.35,142.3,15.38]
[1768720421348,7.6901613,142.37,142.34,0.65365717]
[1768720421530,7.6901613,142.37,142.34,0.62365717]
[1768720421832,0.6661631,142.35,142.31,24.53041221]
[1768720422815,2.78977293,142.35,142.31,22.40680238]
[1768720423144,0.6661631,142.36,142.32,2.12360983]
[1768720423514,0.6661631,142.35,142.33,0.65365717]
[1768720424622,0.6661631,142.35,142.32,0.65365717]
[1768720424817,0.6661631,142.35,142.31,23.06045955]
[1768720425422,0.6661631,142.35,142.32,7.02635432]
[1768720428344,0.6661631,142.34,142.31,16.03365717]
[1768720428554,9.1487292,142.35,142.29,0.65365717]
[1768720428555,2.78977293,142.33,142.29,0.65365717]
[1768720428735,5.34408856,142.36,142.25,35.14899955]
[1768720428736,0.6661631,142.29,142.26,0.65365717]
[1768720428940,0.54616312,142.29,142.26,0.65365717]
[1768720430839,7.69317747,142.31,142.27,0.65365717]
[1768720431146,0.6661631,142.3,142.27,0.65365717]
[1768720434650,2.78977293,142.3,142.27,0.65365717]
[1768720439655,9.81721849,142.3,142.27,0.65365717]
[1768720439836,0.60623547,142.29,142.27,0.65365717]
[1768720441066,0.60623547,142.28,142.26,0.63911058]
[1768720441241,2.7298453,142.28,142.25,7.66883444]
[1768720441743,2.7298453,142.28,142.26,0.63911058]
[1768720442556,2.7298453,142.28,142.25,7.66883444]
[1768720443360,0.60623547,142.27,142.24,23.04938559]
[1768720443666,7.02791119,142.29,142.25,7.66896379]
[1768720443852,2.12360983,142.28,142.25,7.66896379]
[1768720445441,2.7298453,142.28,142.25,7.66896379]
[1768720447145,7.02740688,142.3,142.27,0.63911058]
[1768720447344,21.1577314,142.31,142.26,9.1529771]
[1768720447548,0.60623547,142.3,142.26,9.1529771]
[1768720449349,0.60623547,142.29,142.26,7.66847785]
[1768720452240,2.7298453,142.3,142.27,0.63911058]
[1768720452442,18.4278861,142.31,142.27,0.63911058]
[1768720452774,0.60623547,142.32,142.29,0.63911058]
[1768720454244,0.60623547,142.32,142.28,9.79105335]
[1768720454449,0.60623547,142.31,142.28,7.66744352]
[1768720456643,0.60623547,142.31,142.28,9.79105335]
[1768720457470,0.60623547,142.31,142.28,9.79169921]
[1768720461863,0.60623547,142.32,142.29,0.63911058]
[1768720462376,0.60623547,142.32,142.29,2.76336627]
[1768720462751,0.59471341,142.33,142.3,0.6021211]
[1768720462958,0.59471341,142.33,142.3,2.69637679]
[1768720463158,0.59471341,142.33,142.3,0.5721211]
[1768720465175,0.59471341,142.33,142.3,7.59939608]
[1768720468273,0.59471341,142.31,142.28,2.72637679]
[1768720468477,0.59471341,142.31,142.28,23.01022246]
[1768720474280,2.7189691,142.32,142.29,0.6021211]
[1768720481581,0.59471341,142.32,142.29,0.6021211]
[1768720481781,2.7189691,142.32,142.29,0.6021211]
[1768720493791,9.74544128,142.32,142.29,0.6021211]
[1768720499598,7.62118559,142.32,142.29,0.6021211]
[1768720499895,9.74544128,142.32,142.29,0.6021211]
[1768720503802,0.58808516,142.31,142.28,22.99225583]
[1768720507199,7.6143863,142.33,142.29,0.58415447]
[1768720508079,2.71234085,142.35,142.3,0.58415447]
[1768720508277,2.71234085,142.35,142.31,0.58415447]
[1768720508579,32.10023317,142.37,142.31,15.38]
[1768720508580,2.71234085,142.33,142.31,15.38]
[1768720508995,2.71234085,142.33,142.3,0.58415447]
[1768720509278,9.73827469,142.33,142.3,0.58415447]
[1768720510878,0.58808516,142.34,142.31,0.58415447]
[1768720511074,7.61331053,142.35,142.31,0.58415447]
[1768720511706,7.61331053,142.35,142.31,2.70841016]
[1768720512604,7.61331053,142.35,142.32,0.58415447]
[1768720513809,0.58808516,142.35,142.32,0.58415447]
[1768720513991,0.58808516,142.36,142.33,0.58415447]
[1768720516294,7.61265212,142.36,142.33,0.58415447]
[1768720516495,7.02456696,142.36,142.33,0.58415447]
[1768720516702,7.61265212,142.36,142.33,0.58415447]
[1768720521718,0.58808516,142.36,142.33,0.58415447]
[1768720521915,0.58808516,142.36,142.33,7.61005305]
[1768720522214,9.14698343,142.37,142.34,0.57009734]
[1768720522215,0.62066481,142.37,142.34,0.57009734]
[1768720522513,9.76705469,142.38,142.34,0.54009735]
[1768720524516,0.62066481,142.37,142.34,0.54009735]
[1768720527819,7.64464321,142.37,142.34,0.54009735]
[1768720528618,9.76747637,142.37,142.34,0.54009735]
[1768720529405,0.62066481,142.36,142.33,7.02589858]
[1768720531419,0.62066481,142.36,142.33,7.59599592]
[1768720533829,0.62066481,142.36,142.33,9.71882908]
[1768720537824,9.14685491,142.37,142.34,0.62604468]
[1768720537825,0.6005672,142.37,142.34,0.62604468]
[1768720538726,7.62375351,142.39,142.36,0.62604468]
[1768720539021,0.6005672,142.38,142.36,0.59604469]
[1768720540715,7.62375351,142.39,142.36,0.59604469]
[1768720541430,0.6005672,142.39,142.36,7.62048292]
[1768720541732,0.6005672,142.38,142.35,23.03086553]
[1768720542106,0.6005672,142.38,142.35,16.00604468]
[1768720542307,2.72340036,142.38,142.35,16.00604468]
[1768720543727,0.6005672,142.38,142.35,16.00604468]
[1768720544029,0.6005672,142.38,142.35,15.38]
[1768720544231,7.62414218,142.38,142.35,15.38]
[1768720545818,0.6005672,142.37,142.35,15.38]
[1768720546033,0.6005672,142.37,142.31,17.56681723]
[1768720546034,0.6005672,142.36,142.33,7.65181771]
[1768720546329,0.6005672,142.36,142.33,23.03181771]
[1768720560861,0.6005672,142.36,142.33,25.15465087]
[1768720561566,7.62503743,142.36,142.33,23.03181771]
[1768720563154,0.57282201,142.34,142.33,15.38]
[1768720564343,0.57282201,142.33,142.3,0.58405359]
[1768720564844,0.57282201,142.33,142.3,7.61115276]
[1768720565061,0.57282201,142.33,142.3,0.58405359]
[1768720565573,0.57282201,142.33,142.3,7.61142235]
[1768720569977,0.57282201,142.33,142.3,7.02736876]
[1768720575150,0.57282201,142.33,142.3,7.61142235]
[1768720576372,0.57282201,142.33,142.3,7.02736876]
[1768720577974,0.57282201,142.31,142.27,25.1845552]
[1768720578161,0.57282201,142.31,142.28,0.58405359]
[1768720579076,0.57282201,142.31,142.28,7.61219204]